bitfinex/quotes_SOLUSD_20230110
["timestamp","ask_amount","ask_price","bid_price","bid_amount"]
[1673317996353,21.202669,15.904,15.9,0.31447]
[1673317996562,1.202669,15.904,15.9,0.31447]
[1673317997724,47.18,15.903,15.9,0.31447]
[1673317998037,40.0,15.902,15.9,0.31447]
[1673317998245,67.18,15.902,15.9,0.31447]
[1673317998459,20.0,15.902,15.9,0.31447]
[1673317999932,84.18,15.902,15.88,115.0422]
[1673318000139,30.0,15.899,15.881,67.24]
[1673318000362,1.202669,15.898,15.885,47.23]
[1673318000562,1.202669,15.898,15.881,20.0]
[1673318000563,1.202669,15.898,15.882,47.24]
[1673318000764,1.202669,15.898,15.886,20.0]
[1673318001316,47.14,15.917,15.89,25.69]
[1673318001510,47.13,15.919,15.891,67.21]
[1673318001706,20.0,15.918,15.891,67.21]
[1673318001919,47.14,15.917,15.891,67.21]
[1673318002151,47.13,15.919,15.891,67.21]
[1673318002470,128.59,15.91,15.891,67.21]
[1673318002660,128.53,15.92,15.891,20.0]
[1673318002872,67.13,15.919,15.892,51.01557413]
[1673318003073,67.13,15.919,15.893,20.0]
[1673318003282,25.69,15.91,15.894,51.00557413]
[1673318003517,25.69,15.91,15.888,20.0]
[1673318003518,47.16,15.909,15.889,47.22]
[1673318003730,20.0,15.908,15.886,67.23]
[1673318003920,47.16,15.907,15.886,67.23]
[1673318004255,20.0,15.906,15.886,67.23]
[1673318004666,20.0,15.908,15.886,67.23]
[1673318004871,47.16,15.907,15.886,67.23]
[1673318005098,20.0,15.906,15.886,47.23]
[1673318005282,20.0,15.906,15.88,115.0422]
[1673318005283,128.68,15.9,15.88,115.0422]
[1673318005497,67.19,15.899,15.88,115.0422]
[1673318006333,17.0,15.898,15.88,115.0422]
[1673318006544,47.19,15.897,15.88,115.0422]
[1673318006764,37.0,15.896,15.88,115.0422]
[1673318006975,128.45,15.89,15.873,119.0207]
[1673318007179,84.22,15.889,15.873,119.0207]
[1673318008752,20.0,15.888,15.873,119.0207]
[1673318008978,25.62,15.89,15.873,119.0207]
[1673318009294,20.0,15.889,15.873,119.0207]
[1673318009485,47.22,15.888,15.873,119.0207]
[1673318009908,30.0,15.895,15.874,67.26]
[1673318010150,20.0,15.894,15.874,67.26]
[1673318010757,30.0,15.895,15.88,25.69]
[1673318010977,47.16,15.909,15.885,47.23]
[1673318011196,47.16,15.909,15.876,47.26]
[1673318011197,25.69,15.9,15.876,47.26]
[1673318011390,47.19,15.899,15.876,47.26]
[1673318011597,20.0,15.898,15.876,47.26]
[1673318011826,47.19,15.897,15.875,67.26]
[1673318012244,20.0,15.896,15.875,67.26]
[1673318012439,64.2,15.895,15.875,67.26]
[1673318012657,20.0,15.894,15.875,67.26]
[1673318012874,47.21,15.893,15.875,67.26]
[1673318013076,25.6,15.89,15.875,20.0]
[1673318013297,67.22,15.889,15.874,20.0]
[1673318013497,67.22,15.889,15.873,119.0207]
[1673318013498,84.22,15.889,15.873,119.0207]
[1673318014130,6.0469766,15.881,15.86,77.2968248]
[1673318014351,102.24452638,15.871,15.86,77.2968248]
[1673318014758,102.24452638,15.871,15.861,67.3]
[1673318014969,25.69,15.87,15.86,77.2968248]
[1673318015386,37.0,15.869,15.86,77.2968248]
[1673318015706,47.28,15.868,15.86,77.2968248]
[1673318015929,37.0,15.867,15.86,77.2968248]
[1673318016122,47.29,15.866,15.86,77.2968248]
[1673318016333,47.29,15.866,15.848,25.230267]
[1673318016334,35.31710271,15.852,15.842,153.62202849]
[1673318016552,128.37,15.85,15.842,153.62202849]
[1673318016759,47.34,15.849,15.842,153.62202849]
[1673318016970,25.77,15.85,15.842,153.62202849]
[1673318017282,47.32,15.856,15.842,153.62202849]
[1673318017655,25.69,15.85,15.842,153.62202849]
[1673318018440,67.34,15.849,15.842,153.62202849]
[1673318018657,0.93,15.848,15.842,153.62202849]
[1673318018863,20.0,15.849,15.842,153.62202849]
[1673318019191,25.54,15.85,15.842,153.62202849]
[1673318019404,25.6,15.85,15.842,153.62202849]
[1673318019599,25.6,15.85,15.843,20.0]
[1673318019804,97.72950768,15.859,15.842,153.62202849]
[1673318020126,97.72950768,15.859,15.843,46.86]
[1673318020450,97.72950768,15.859,15.842,153.62202849]
[1673318020661,97.72950768,15.859,15.844,20.0]
[1673318020851,97.72950768,15.859,15.845,47.35]
[1673318021502,97.72950768,15.859,15.846,20.0]
[1673318021709,97.72950768,15.859,15.847,64.34]
[1673318022328,25.62,15.87,15.85,25.49]
[1673318022548,25.62,15.87,15.852,20.0]
[1673318022764,25.62,15.87,15.853,47.33]
[1673318023089,25.62,15.87,15.854,20.0]
[1673318023397,25.62,15.87,15.855,47.32]
[1673318024448,25.62,15.87,15.856,20.0]
[1673318024648,25.62,15.87,15.857,47.31]
[1673318024860,25.62,15.87,15.858,17.0]
[1673318025171,25.62,15.87,15.856,20.0]
[1673318025497,128.38,15.87,15.854,20.0]
[1673318025709,67.28,15.869,15.854,20.0]
[1673318025924,25.62,15.86,15.845,47.35]
[1673318026437,25.62,15.86,15.843,67.36]
[1673318026848,25.62,15.86,15.845,47.35]
[1673318027056,25.62,15.86,15.847,47.34]
[1673318027275,47.28,15.868,15.847,47.34]
[1673318027498,67.28,15.869,15.848,20.0]
[1673318027703,128.38,15.87,15.849,47.34]
[1673318027704,72.89,15.87,15.849,47.34]
[1673318027917,25.62,15.87,15.85,20.0]
[1673318028231,25.62,15.87,15.851,64.33]
[1673318028447,25.62,15.87,15.852,20.0]
[1673318028635,25.62,15.87,15.853,64.33]
[1673318028839,102.76,15.88,15.853,64.33]
[1673318028840,25.54,15.88,15.853,64.33]
[1673318029056,57.34402638,15.871,15.86,25.69]
[1673318029274,128.53,15.89,15.862,20.0]
[1673318029595,32.04042647,15.877,15.863,3.73354399]
[1673318029799,25.69,15.87,15.85,20.0]
[1673318030120,47.28,15.869,15.85,20.0]
[1673318030342,25.69,15.87,15.85,20.0]
[1673318030532,25.69,15.87,15.851,47.33]
[1673318031067,25.69,15.87,15.852,20.0]
[1673318031277,47.28,15.869,15.848,20.0]
[1673318031479,20.0,15.868,15.848,20.0]
[1673318031689,47.28,15.867,15.849,47.34]
[1673318031893,20.0,15.866,15.849,47.34]
[1673318032094,20.0,15.866,15.85,20.0]
[1673318032533,47.28,15.869,15.85,45.69]
[1673318032746,25.62,15.87,15.851,47.33]
[1673318032954,47.25,15.877,15.851,47.33]
[1673318033161,20.0,15.876,15.851,47.33]
[1673318033370,20.0,15.876,15.852,20.0]
[1673318033583,47.25,15.879,15.86,25.49]
[1673318033798,47.22,15.889,15.861,64.3]
[1673318034002,47.22,15.889,15.862,3.46637358]
[1673318034216,47.22,15.889,15.87,25.69]
[1673318034538,47.22,15.889,15.872,23.80727023]
[1673318034748,25.54,15.9,15.88,25.69]
[1673318034945,25.54,15.9,15.881,64.24]
[1673318035152,25.54,15.9,15.882,20.0]
[1673318035365,20.0,15.909,15.884,20.0]
[1673318035366,47.16,15.908,15.884,20.0]
[1673318035575,47.16,15.908,15.885,17.0]
[1673318035992,47.16,15.909,15.886,47.23]
[1673318036206,20.0,15.908,15.887,17.0]
[1673318036514,47.16,15.907,15.887,17.0]
[1673318036726,47.16,15.909,15.886,17.0]
[1673318037058,47.16,15.909,15.887,47.22]
[1673318037474,20.0,15.908,15.888,17.0]
[1673318037791,20.0,15.906,15.888,17.0]
[1673318038001,47.17,15.905,15.887,17.0]
[1673318038211,47.16,15.909,15.886,17.0]
[1673318038417,47.16,15.909,15.887,47.22]
[1673318038616,25.69,15.9,15.883,47.24]
[1673318038830,47.19,15.899,15.882,47.24]
[1673318039040,25.69,15.9,15.882,47.24]
[1673318039356,25.69,15.9,15.883,20.0]
[1673318039900,47.16,15.908,15.883,20.0]
[1673318040094,47.16,15.909,15.885,20.0]
[1673318040306,47.14,15.916,15.89,25.69]
[1673318040525,67.14,15.916,15.891,47.21]
[1673318040843,25.69,15.91,15.892,17.0]
[1673318041046,47.16,15.909,15.892,17.0]
[1673318041251,47.16,15.909,15.891,17.0]
[1673318041474,25.69,15.91,15.892,67.21]
[1673318041671,47.14,15.916,15.893,17.0]
[1673318042293,20.0,15.909,15.886,47.23]
[1673318042507,47.16,15.908,15.89,25.69]
[1673318042737,47.16,15.909,15.886,47.23]
[1673318042948,20.0,15.908,15.885,20.0]
[1673318043266,47.16,15.907,15.885,20.0]
[1673318043686,20.0,15.906,15.885,20.0]
[1673318043906,20.0,15.906,15.886,47.23]
[1673318044121,47.14,15.916,15.89,25.69]
[1673318044300,47.14,15.916,15.892,20.0]
[1673318044509,128.37,15.91,15.891,17.0]
[1673318044731,20.0,15.908,15.891,17.0]
[1673318044941,47.16,15.907,15.891,17.0]
[1673318045260,20.0,15.906,15.891,17.0]
[1673318045476,47.17,15.905,15.891,17.0]
[1673318045659,20.0,15.904,15.891,17.0]
[1673318046079,25.6,15.91,15.891,17.0]
[1673318046288,67.16,15.909,15.891,17.0]
[1673318047344,20.0,15.908,15.891,17.0]
[1673318047560,47.16,15.907,15.891,17.0]
[1673318047769,20.0,15.906,15.891,17.0]
[1673318047993,47.17,15.905,15.891,17.0]
[1673318048211,20.0,15.904,15.891,17.0]
[1673318048518,20.0,15.904,15.88,247.7416]
[1673318048519,20.0,15.903,15.886,47.23]
[1673318048707,20.0,15.903,15.88,144.9816]
[1673318048708,128.36,15.9,15.881,114.0429]
[1673318048920,128.28,15.89,15.872,110.599]
[1673318049136,47.22,15.889,15.872,110.599]
[1673318049350,20.0,15.888,15.872,110.599]
[1673318049571,47.22,15.887,15.872,110.599]
[1673318049882,47.22,15.887,15.872,110.099]
[1673318050077,37.0,15.886,15.872,110.099]
[1673318050290,47.23,15.885,15.866,20.0]
[1673318050504,20.0,15.884,15.866,20.0]
[1673318050704,25.69,15.88,15.866,20.0]
[1673318050920,47.25,15.879,15.865,116.5994]
[1673318051771,37.0,15.878,15.859,20.0]
[1673318051983,47.25,15.877,15.859,20.0]
[1673318052194,20.0,15.876,15.859,20.0]
[1673318052514,47.26,15.875,15.859,20.0]
[1673318052825,20.0,15.874,15.859,20.0]
[1673318053018,47.27,15.873,15.859,20.0]
[1673318053230,20.0,15.872,15.858,20.0]
[1673318053440,47.27,15.871,15.857,117.5692]
[1673318054299,47.27,15.871,15.858,20.0]
[1673318054506,47.27,15.871,15.844,47.35]
[1673318054507,128.22,15.87,15.844,47.35]
[1673318054707,47.28,15.869,15.844,157.7919]
[1673318054913,67.28,15.869,15.844,157.7919]
[1673318055120,47.28,15.869,15.845,20.0]
[1673318055349,25.54,15.87,15.845,20.0]
[1673318055541,47.28,15.869,15.846,47.35]
[1673318055749,47.28,15.869,15.845,20.0]
[1673318055750,47.28,15.869,15.847,20.0]
[1673318056721,37.0,15.868,15.845,20.0]
[1673318056906,67.28,15.867,15.845,20.0]
[1673318057246,67.28,15.867,15.847,20.0]
[1673318057751,25.62,15.86,15.847,20.0]
[1673318058178,47.31,15.859,15.847,20.0]
[1673318059338,47.31,15.859,15.845,20.0]
[1673318059544,47.31,15.859,15.844,110.4419]
[1673318059747,20.0,15.858,15.842,153.62202849]
[1673318059957,47.31,15.857,15.842,153.62202849]
[1673318060190,47.31,15.857,15.843,20.0]
[1673318060393,128.61,15.86,15.843,20.0]
[1673318060394,25.85,15.86,15.843,20.0]
[1673318060606,20.0,15.859,15.843,67.36]
[1673318060797,47.31,15.858,15.843,20.0]
[1673318061343,20.0,15.857,15.842,153.62202849]
[1673318061529,47.32,15.856,15.842,153.62202849]
[1673318061739,20.0,15.855,15.842,153.62202849]
[1673318061950,47.32,15.854,15.842,153.62202849]
[1673318062180,20.0,15.853,15.842,153.62202849]
[1673318062393,47.33,15.852,15.842,153.62202849]
[1673318064691,25.69,15.85,15.842,153.62202849]
[1673318065540,25.69,15.85,15.843,20.0]
[1673318065748,20.0,15.853,15.843,20.0]
[1673318065960,20.0,15.858,15.843,20.0]
[1673318066164,25.62,15.86,15.844,17.0]
[1673318066379,25.62,15.86,15.845,47.35]
[1673318066590,25.62,15.86,15.846,37.0]
[1673318066783,25.62,15.86,15.846,34.5]
[1673318068042,148.53,15.88,15.85,128.43]
[1673318068259,128.53,15.88,15.851,179.9401772]
[1673318068568,128.53,15.88,15.851,168.2932572]
[1673318068792,47.25,15.879,15.851,168.2932572]
[1673318068999,20.0,15.869,15.851,168.2932572]
[1673318069206,47.28,15.868,15.851,120.9632572]
[1673318069418,25.62,15.86,15.851,120.9632572]
[1673318069622,25.6,15.87,15.851,36.41617221]
[1673318069828,51.54,15.88,15.853,4.91951351]
[1673318070038,20.0,15.879,15.853,4.91951351]
[1673318070260,47.25,15.878,15.853,4.91951351]
[1673318070687,47.25,15.879,15.854,47.32]
[1673318070899,47.25,15.879,15.855,4.91951351]
[1673318071220,20.0,15.878,15.855,24.91951351]
[1673318071429,47.25,15.877,15.855,24.91951351]
[1673318071617,20.0,15.876,15.855,24.91951351]
[1673318071946,25.62,15.87,15.854,4.91951351]
[1673318072157,25.62,15.87,15.853,47.33]
[1673318072158,67.28,15.869,15.846,67.35]
[1673318073002,67.28,15.869,15.848,67.34]
[1673318073527,128.3,15.88,15.852,20.0]
[1673318073844,128.3,15.88,15.854,22.20282768]
[1673318074158,47.25,15.879,15.855,47.32]
[1673318074365,47.25,15.879,15.856,19.20282768]
[1673318074581,47.25,15.879,15.857,67.31]
[1673318074884,47.25,15.879,15.858,19.20282768]
[1673318075099,20.0,15.878,15.858,17.0]
[1673318075301,47.25,15.877,15.858,17.0]
[1673318075625,25.69,15.87,15.858,17.0]
[1673318076046,47.26,15.875,15.858,17.0]
[1673318076239,20.0,15.874,15.858,17.0]
[1673318076673,47.27,15.873,15.858,17.0]
[1673318076877,47.27,15.873,15.856,20.0]
[1673318076878,47.27,15.873,15.857,17.0]
[1673318077091,25.69,15.87,15.852,20.0]
[1673318077293,67.28,15.869,15.852,20.0]
[1673318078579,67.28,15.869,15.847,117.3787]
[1673318079195,17.0,15.868,15.847,117.3787]
[1673318079405,67.28,15.867,15.847,117.3787]
[1673318079617,20.0,15.866,15.847,117.3787]
[1673318079824,47.29,15.865,15.847,117.3787]
[1673318080158,20.0,15.864,15.847,117.3787]
[1673318080364,47.3,15.863,15.847,117.3787]
[1673318080578,25.6,15.86,15.848,119.7226]
[1673318080883,47.31,15.859,15.844,20.0]
[1673318081102,20.0,15.858,15.844,20.0]
[1673318081299,47.31,15.857,15.842,153.62202849]
[1673318081511,20.0,15.856,15.842,153.62202849]
[1673318081715,47.32,15.855,15.842,153.62202849]
[1673318082046,25.6,15.85,15.842,153.62202849]
[1673318082449,47.34,15.849,15.842,153.62202849]
[1673318084360,25.6,15.85,15.842,152.62202849]
[1673318084546,47.34,15.849,15.842,152.62202849]
[1673318085620,25.6,15.85,15.842,152.62202849]
[1673318085817,20.0,15.856,15.843,37.0]
[1673318086036,47.31,15.859,15.843,37.0]
[1673318086037,20.0,15.858,15.843,37.0]
[1673318086351,47.31,15.857,15.843,37.0]
[1673318086559,20.0,15.856,15.843,37.0]
[1673318086967,20.0,15.856,15.843,19.5]
[1673318087175,47.32,15.855,15.843,19.5]
[1673318087397,20.0,15.854,15.843,19.5]
[1673318087609,47.33,15.853,15.843,19.5]
[1673318087825,20.0,15.852,15.843,19.5]
[1673318088447,20.0,15.858,15.843,19.5]
[1673318088769,47.31,15.857,15.843,19.5]
[1673318088983,20.0,15.856,15.843,19.5]
[1673318089196,47.32,15.855,15.843,19.5]
[1673318089404,20.0,15.854,15.843,19.5]
[1673318089597,47.33,15.853,15.843,19.5]
[1673318090035,20.0,15.852,15.843,19.5]
[1673318090562,128.37,15.85,15.842,152.62202849]
[1673318090765,47.34,15.849,15.842,152.62202849]
[1673318090988,20.0,15.848,15.842,152.62202849]
[1673318091296,47.34,15.847,15.842,152.62202849]
[1673318091697,20.0,15.846,15.842,152.62202849]
[1673318091922,47.35,15.845,15.842,152.62202849]
[1673318092139,20.0,15.844,15.842,152.62202849]
[1673318092323,47.36,15.843,15.842,152.62202849]
[1673318092540,67.36,15.843,15.842,152.62202849]
[1673318093489,24.99927151,15.842,15.825,174.3538254]
[1673318093813,47.36,15.841,15.826,20.0]
[1673318094028,47.36,15.842,15.826,136.1935]
[1673318094764,20.0,15.841,15.826,136.1935]
[1673318094981,47.36,15.84,15.826,136.1935]
[1673318095374,47.36,15.84,15.825,174.3538254]
[1673318095375,17.0,15.839,15.825,174.3538254]
[1673318095589,87.37,15.838,15.825,174.3538254]
[1673318096219,128.22,15.83,15.825,174.3538254]
[1673318096428,67.4,15.829,15.825,174.3538254]
[1673318096851,25.54,15.83,15.825,174.3538254]
[1673318097279,47.38,15.836,15.825,174.3538254]
[1673318097495,20.0,15.835,15.825,174.3538254]
[1673318097719,25.6,15.83,15.825,174.3538254]
[1673318098022,67.4,15.829,15.825,174.3538254]
[1673318099371,67.4,15.829,15.825,173.8538254]
[1673318099803,17.0,15.828,15.825,173.8538254]
[1673318100122,20.0,15.827,15.825,173.8538254]
[1673318100361,47.41,15.826,15.825,173.8538254]
[1673318100551,67.41,15.826,15.825,173.8538254]
[1673318100971,119.05365111,15.826,15.825,173.8538254]
[1673318101196,119.05365111,15.826,15.825,69.9319254]
[1673318101409,149.05365111,15.826,15.825,69.9319254]
[1673318101606,20.0,15.826,15.825,69.9319254]
[1673318101821,20.0,15.826,15.825,9.3119254]
[1673318102455,25.85,15.83,15.825,9.3119254]
[1673318102648,47.38,15.834,15.825,9.3119254]
[1673318102863,20.0,15.833,15.825,9.3119254]
[1673318103301,25.69,15.83,15.825,9.3119254]
[1673318103503,67.4,15.829,15.825,9.3119254]
[1673318103703,20.0,15.828,15.825,9.3119254]
[1673318104245,47.4,15.827,15.825,9.3119254]
[1673318104463,20.0,15.826,15.825,9.3119254]
[1673318104776,67.41,15.826,15.825,9.3119254]
[1673318104965,84.41,15.826,15.825,9.3119254]
[1673318105176,97.41,15.826,15.825,9.3119254]
[1673318105822,114.41,15.826,15.825,9.3119254]
[1673318106138,50.0,15.826,15.82,117.4936913]
[1673318106346,30.0,15.826,15.82,117.4936913]
[1673318106535,25.85,15.83,15.821,20.0]
[1673318106750,47.4,15.829,15.82,117.4936913]
[1673318107172,128.61,15.83,15.82,117.4936913]
[1673318107381,47.4,15.829,15.82,117.4936913]
[1673318107590,47.4,15.829,15.821,20.0]
[1673318107818,128.61,15.83,15.821,20.0]
[1673318108019,25.85,15.83,15.825,0.31596]
[1673318108656,47.4,15.829,15.825,0.31596]
[1673318109183,20.0,15.828,15.825,0.31596]
[1673318109484,20.0,15.829,15.825,0.31596]
[1673318110745,20.0,15.839,15.825,0.31596]
[1673318110746,25.62,15.84,15.825,0.31596]
[1673318111271,47.34,15.849,15.825,42.73804765]
[1673318111507,25.62,15.85,15.828,20.0]
[1673318111716,25.62,15.85,15.829,47.4]
[1673318112037,47.34,15.849,15.831,20.0]
[1673318112236,25.62,15.85,15.832,2.33704152]
[1673318112657,25.62,15.85,15.832,19.33704152]
[1673318112658,47.34,15.849,15.832,19.33704152]
[1673318112890,47.34,15.849,15.832,17.0]
[1673318113075,25.62,15.84,15.831,20.0]
[1673318113724,47.34,15.849,15.831,20.0]
[1673318114242,20.0,15.848,15.831,20.0]
[1673318114437,25.6,15.84,15.831,20.0]
[1673318115082,20.0,15.848,15.831,67.39]
[1673318115278,20.0,15.849,15.831,67.39]
[1673318115912,128.38,15.84,15.828,20.0]
[1673318116123,67.37,15.839,15.826,20.0]
[1673318116542,47.37,15.839,15.826,20.0]
[1673318116753,128.37,15.85,15.826,20.0]
[1673318116976,905.5441801,15.881,15.826,20.0]
[1673318116977,128.45,15.84,15.826,20.0]
[1673318117190,20.0,15.839,15.826,20.0]
[1673318117405,67.37,15.839,15.826,20.0]
[1673318117595,20.0,15.839,15.826,20.0]
[1673318117806,25.62,15.84,15.826,20.0]
[1673318118028,47.34,15.849,15.826,20.0]
[1673318118241,20.0,15.848,15.828,20.0]
[1673318118555,47.34,15.847,15.828,20.0]
[1673318118766,20.0,15.846,15.828,20.0]
[1673318118961,20.0,15.846,15.826,20.0]
[1673318118962,25.69,15.84,15.826,20.0]
[1673318119167,67.37,15.839,15.826,20.0]
[1673318119593,20.0,15.839,15.826,20.0]
[1673318119806,67.37,15.839,15.826,20.0]
[1673318120035,47.37,15.839,15.826,20.0]
[1673318120230,25.69,15.84,15.826,20.0]
[1673318120440,47.35,15.846,15.826,20.0]
[1673318120664,20.0,15.845,15.826,67.41]
[1673318120860,47.34,15.849,15.828,20.0]
[1673318121070,47.34,15.849,15.829,17.0]
[1673318121281,25.62,15.85,15.83,47.39]
[1673318121605,25.62,15.85,15.832,20.0]
[1673318121806,128.3,15.85,15.832,20.0]
[1673318122139,67.34,15.849,15.832,20.0]
[1673318122328,67.34,15.849,15.833,17.0]
[1673318122767,47.34,15.849,15.833,17.0]
[1673318123626,47.34,15.849,15.832,17.0]
[1673318124037,128.3,15.85,15.832,17.0]
[1673318124249,25.77,15.85,15.832,17.0]
[1673318124467,47.32,15.855,15.833,56.36642765]
[1673318124687,20.0,15.854,15.835,20.0]
[1673318124884,47.33,15.853,15.836,17.0]
[1673318125102,47.32,15.855,15.836,17.0]
[1673318125408,47.31,15.859,15.837,20.0]
[1673318125626,47.31,15.859,15.838,64.37]
[1673318126034,47.31,15.859,15.839,21.72420307]
[1673318126244,47.31,15.859,15.84,64.36]
[1673318126454,47.31,15.859,15.84,17.0]
[1673318126663,25.6,15.85,15.838,47.37]
[1673318126886,25.6,15.85,15.834,47.38]
[1673318127093,47.34,15.849,15.83,118.9454]
[1673318127308,47.34,15.849,15.83,138.9454]
[1673318127938,20.0,15.848,15.83,138.9454]
[1673318128130,47.34,15.847,15.83,138.9454]
[1673318128343,20.0,15.846,15.83,138.9454]
[1673318128562,25.6,15.84,15.83,118.9454]
[1673318129832,25.6,15.84,15.831,20.0]
[1673318130231,128.13,15.84,15.825,20.31596]
[1673318130570,67.37,15.839,15.825,0.31596]
[1673318130759,67.37,15.839,15.825,20.31596]
[1673318131497,47.37,15.839,15.825,20.31596]
[1673318131711,47.35,15.845,15.825,20.31596]
[1673318131928,20.0,15.844,15.826,47.41]
[1673318132337,47.36,15.843,15.825,20.31596]
[1673318132550,20.0,15.842,15.825,20.31596]
[1673318132877,20.0,15.842,15.826,17.0]
[1673318133084,20.0,15.842,15.827,67.4]
[1673318133305,20.0,15.848,15.828,20.0]
[1673318133614,25.69,15.84,15.828,20.0]
[1673318133806,25.69,15.84,15.825,0.31596]
[1673318134021,25.69,15.83,15.825,0.31596]
[1673318136756,47.37,15.839,15.825,0.31596]
[1673318136968,20.0,15.838,15.825,0.31596]
[1673318137179,46.87,15.837,15.825,0.31596]
[1673318137385,25.6,15.83,15.825,0.31596]
[1673318137604,47.4,15.829,15.825,0.31596]
[1673318137799,20.0,15.828,15.825,0.31596]
[1673318138009,47.4,15.827,15.825,0.31596]
[1673318138235,20.0,15.826,15.825,0.31596]
[1673318138454,47.4,15.829,15.825,0.31596]
[1673318138766,20.0,15.828,15.825,0.31596]
[1673318140117,47.38,15.834,15.825,0.31596]
[1673318140321,20.0,15.833,15.825,0.31596]
[1673318140970,20.0,15.836,15.825,0.31596]
[1673318141287,47.38,15.835,15.825,0.31596]
[1673318141514,20.0,15.834,15.825,0.31596]
[1673318141708,47.39,15.833,15.825,0.31596]
[1673318142228,47.37,15.837,15.825,0.31596]
[1673318142757,47.37,15.839,15.825,0.31596]
[1673318143153,20.0,15.838,15.825,0.31596]
[1673318143381,47.37,15.837,15.825,0.31596]
[1673318143572,20.0,15.836,15.825,0.31596]
[1673318144218,47.38,15.835,15.825,0.31596]
[1673318144422,20.0,15.834,15.825,0.31596]
[1673318144643,47.39,15.833,15.825,0.31596]
[1673318144845,20.0,15.832,15.825,0.31596]
[1673318145056,25.62,15.83,15.825,0.31596]
[1673318145921,47.4,15.829,15.825,0.31596]
[1673318146460,25.62,15.83,15.825,0.31596]
[1673318147082,20.0,15.829,15.825,0.31596]
[1673318147407,47.4,15.828,15.825,0.31596]
[1673318147595,20.0,15.827,15.825,0.31596]
[1673318148242,20.0,15.828,15.825,0.31596]
[1673318148434,47.4,15.827,15.825,0.31596]
[1673318148652,20.0,15.826,15.825,0.31596]
[1673318150975,67.41,15.826,15.825,0.31596]
[1673318152000,47.37,15.837,15.826,20.0]
[1673318152223,20.0,15.836,15.826,20.0]
[1673318152431,47.38,15.835,15.826,20.0]
[1673318152780,20.0,15.834,15.826,20.0]
[1673318152982,47.39,15.833,15.825,0.31596]
[1673318153278,20.0,15.832,15.825,0.31596]
[1673318153497,25.6,15.83,15.825,0.31596]
[1673318159278,20.0,15.832,15.825,0.31596]